Cogmind - Beta 17.1 @@@ ROGUE MODE // 2026.09.21 @ 08:22:44 Player: Somberlain Result: Destroyed by Y-72 Warden with Railgun Performance ------------- Evolutions (7) 3500 Regions Visited (14) 2800 Robots Destroyed (101) 505 Value Destroyed (4582) 4582 Prototype IDs (33) 660 Alien Tech Used (0) 0 Bonus (2143) 2143 TOTAL SCORE: 14190 Bonus ------- Follower Combat Kills 1243 Aligned with FarCom 300 Built Enhanced Grunts 300 A7 Reached Mainframe 300 Cogmind --------- Core Integrity 0/1300 Matter 260/300 Energy 94/100 System Corruption 14% Temperature Cool (0) Movement Flying (40) Location -3/Research Parts ------- > --- POWER (2) -------- (None) > --- PROPULSION (4) --- Field Propulsion Array > --- UTILITY (12) ----- Advanced Signal Interpreter Advanced Terrain Scan Processor Improved Target Analyzer Advanced Target Analyzer Graphene Brace Improved System Shield > --- WEAPON (3) ------- Enhanced Force Lance > --- INVENTORY (5) ---- Advanced Myomer Leg Enhanced Force Lance Enhanced Force Lance Peak State ------------ > --- POWER ------------ Micro Fission Core Light Antimatter Reactor > --- PROPULSION ------- Flexi-carbon Leg Enhanced Flexi-carbon Leg Enhanced Flexi-carbon Leg > --- UTILITY ---------- Long-range Sensor Array Advanced Signal Interpreter Advanced Terrain Scanner Advanced Terrain Scan Processor Advanced Melee Analysis Suite Improved Target Analyzer Advanced Actuator Array Improved Transmission Jammer Hacking Suite Improved Hacking Suite Improved Hacking Suite Improved System Shield > --- WEAPON ----------- Heavy Gauss Cannon Heavy Gauss Cannon > --- INVENTORY -------- Superbattery Improved Actuator Array Advanced Reaction Control System Field Lobotomy Kit [Rating: 111] Favorites ----------- Power Micro Fission Core Engine Deuterium Engine Power Core Micro Fission Core Reactor Particle Reactor Propulsion Flexi-carbon Leg Treads Improved Treads Leg Flexi-carbon Leg Hover Unit Improved Hover Unit Flight Unit Cooled Impulse Thruster Utility Hacking Suite Device Improved Sensor Array Storage Medium Storage Unit Processor Improved Melee Analysis Suite Hackware Hacking Suite Weapon Spear Energy Gun Spread Laser Ballistic Gun Enhanced Autogun Ballistic Cannon Heavy Gauss Cannon Launcher Missile Launcher Special Weapon Improved Plasma Cutter Impact Weapon Heavy Mace Slashing Weapon Axe Piercing Weapon Spear Build | -11 -10 -10 -10 -9 -8 -7 -6 -5 -5 -5 -5 -5 -4 -3 ------- Run | Yrd Mat Min Exi Min Mat Fac Fac Fac Ext Cet Arc Hub Fac Res Slots Evolved 14 | . . . . . 4 2 2 2 . . . . 2 2 Power 1 | . . . . . . . . 1 . . . . . . Propulsion 2 | . . . . . 1 . . . . . . . . 1 Utility 10 | . . . . . 3 2 2 1 . . . . 2 . Weapon 1 | . . . . . . . . . . . . . . 1 Parts Attached 145 | . 8 2 . . 28 6 19 10 10 4 4 2 25 27 Power 14 | . . 1 . . 1 2 1 3 2 . 1 . 2 1 Engine 2 | . . 1 . . 1 . . . . . . . . . Core 9 | . . . . . . 2 1 3 2 . . . 1 . Reactor 3 | . . . . . . . . . . . 1 . 1 1 Propulsion 55 | . 5 1 . . 9 1 9 3 4 2 1 2 5 13 Treads 5 | . 2 . . . 3 . . . . . . . . . Leg 35 | . . . . . 6 1 9 3 4 2 1 2 5 2 Wheel . | . . . . . . . . . . . . . . . Hover 7 | . 3 1 . . . . . . . . . . . 3 Flight 8 | . . . . . . . . . . . . . . 8 Utility 49 | . 1 . . . 10 3 7 3 4 1 2 . 12 6 Device 25 | . . . . . 4 1 3 2 3 . . . 8 4 Storage 3 | . 1 . . . 1 . . . . . . . 1 . Processor 11 | . . . . . 2 1 4 . 1 1 . . . 2 Hackware 10 | . . . . . 3 1 . 1 . . 2 . 3 . Protection . | . . . . . . . . . . . . . . . Artifact . | . . . . . . . . . . . . . . . Weapon 27 | . 2 . . . 8 . 2 1 . 1 . . 6 7 Energy Gun 3 | . 2 . . . 1 . . . . . . . . . Energy Cannon . | . . . . . . . . . . . . . . . Ballistic Gun 4 | . . . . . 4 . . . . . . . . . Ballistic Cannon 3 | . . . . . . . . . . . . . 3 . Launcher 3 | . . . . . . . 2 1 . . . . . . Special Weapon 2 | . . . . . . . . . . 1 . . 1 . Impact Weapon 1 | . . . . . 1 . . . . . . . . . Slashing Weapon 3 | . . . . . . . . . . . . . . 3 Piercing Weapon 8 | . . . . . 2 . . . . . . . 2 4 Special Melee Weapon . | . . . . . . . . . . . . . . . Unidentified Prototypes 10 | . . . . . 2 1 . . . . . 1 2 4 Corrupted Parts 5 | . . . . . . . . . . . . . 4 1 System Corruption 32 | . . . . . . . . . . . . . 28 4 Parts Lost 74 | . . 1 . . 4 1 9 4 4 2 . 1 24 24 Power 10 | . . . . . 1 . 1 2 1 . . . 3 2 Propulsion 26 | . . 1 . . 2 . 3 2 2 . . . 5 11 Utility 27 | . . . . . . 1 3 . 1 1 . . 12 9 Weapon 11 | . . . . . 1 . 2 . . 1 . 1 4 2 Highest Loss Streak 15 | . . 1 . . 3 1 5 2 2 2 . 1 15 9 To Critical Strikes . | . . . . . . . . . . . . . . . Average Backups 7 | . 2 4 4 6 8 9 7 9 9 9 9 9 5 2 Power . | . . . . . . . . . . . . . . . Propulsion . | . 1 2 2 2 . . 1 1 . . 1 1 . . Utility 4 | . . . . 1 2 4 3 6 8 7 7 7 3 . Weapon 1 | . 1 2 2 2 3 2 . . . . . . . 1 Tool/Special . | . . . . . . . . . . . . . . . Unused Backups 18 | . . . . . 6 2 1 1 2 . 2 . . 4 Power 3 | . . . . . 3 . . . . . . . . . Propulsion 4 | . . . . . . . 1 1 . . . . . 2 Utility 7 | . . . . . 1 2 . . 2 . 2 . . . Weapon 4 | . . . . . 2 . . . . . . . . 2 Tool/Special . | . . . . . . . . . . . . . . . Average Slot Usage (%) 89 | . 38 72 85 85 92 98 93 99 97 98 100 98 87 51 Engine 2 | . . 4 14 14 7 . . . . . . . . . Core 4 | . . . . . . 5 5 10 9 11 6 5 4 . Treads 1 | . 9 . . . 5 . . . . . . . . . Leg 14 | . . . . . 20 23 16 16 15 17 17 17 12 2 Hover 2 | . 11 25 28 28 . . . . . . . . . 2 Device 10 | . . . . . 5 7 15 11 10 15 11 11 16 9 Storage 5 | . 1 14 14 14 9 7 6 5 5 5 5 5 . . Processor 18 | . . . . . 7 14 25 29 29 24 29 29 20 16 Hackware 12 | . . . . . 18 21 8 10 11 11 11 11 19 5 Energy Gun 2 | . 15 28 28 28 4 . . . . . . . . . Ballistic Gun 1 | . . . . . 9 . . . . . . . . . Piercing Weapon 6 | . . . . . 3 15 12 10 11 5 5 4 . 5 Peak Build Rating 111 | . 10 10 12 12 38 47 69 77 78 80 88 92 111 97 Average Rating 60 | . 5 9 10 12 32 45 57 74 74 77 86 89 95 68 On Entrance 44 | . . 10 10 12 12 33 47 69 75 76 80 87 88 66 Avg Prop Armor Cover (%) 13 | . . . . . . . . 9 9 . . . . 21 Naked Turns 35 | . 35 . . . . . . . . . . . . . Heaviest Build 58 | . 11 14 14 14 29 25 28 34 33 37 45 39 58 33 Greatest Support 79 | 3 46 14 14 14 69 45 63 63 63 63 63 79 79 50 Greatest Overweight (x) 9 | . . 1 . . . . 8 . 1 . . . 9 3 Average Overweight (x) . | . . . . . . . . . . . . . . . Largest Inventory Capacity 10 | 5 8 8 8 8 10 10 10 10 10 10 10 10 10 5 Average Capacity 8 | 5 5 8 8 8 9 10 10 10 10 10 10 10 5 5 Most Carried 10 | . 5 5 6 7 10 10 10 10 10 10 10 10 10 5 Average Carried 7 | . 2 4 4 6 8 9 7 9 9 9 9 9 4 3 Final Capacity 10 | 5 8 8 8 8 10 10 10 10 10 10 10 10 5 5 Final Carried 10 | . 5 4 6 7 9 9 10 10 10 9 10 10 5 3 Class Distribution -------------------- 24% | Hacker-Gladiator 15% | Mutant 14% | Hacker-Mutant 11% | Gladiator 7% | Hacker-Skirmisher 5% | Scientist-Gladiator 5% | Hacker-Assassin 3% | Scavenger-Mutant Dominant Class ---------------- Mutant | -10/Materials Mutant | -10/Mines Mutant | -10/Exiles Mutant | -9/Mines Hacker-Mutant | -8/Materials Hacker-Gladiator | -7/Factory Gladiator | -6/Factory Hacker-Gladiator | -5/Factory Scientist-Gladiator | -5/Extension Hacker-Assassin | -5/Cetus Commander-Mutant | -5/Archives Scavenger-Assassin | -5/Hub_04(d) Hacker-Skirmisher | -4/Factory Mutant | -3/Research Resources | -11 -10 -10 -10 -9 -8 -7 -6 -5 -5 -5 -5 -5 -4 -3 ----------- Run | Yrd Mat Min Exi Min Mat Fac Fac Fac Ext Cet Arc Hub Fac Res Matter Collected 2947 | . . 122 . 183 682 96 315 211 159 68 128 29 699 255 Remotely . | . . . . . . . . . . . . . . . Salvage Created 4362 | . . 15 . 34 1023 240 724 448 701 58 147 112 475 385 Parts 233 | . . 2 . 4 56 13 40 22 28 . 16 4 26 22 Haulers Intercepted 3 | . . . . . 1 1 . . . . . 1 . . Recyclers Shooed 2 | . . . . . 1 . 1 . . . . . . . Parts Field Recycled . | . . . . . . . . . . . . . . . Retrieved Matter . | . . . . . . . . . . . . . . . Parts Self-Destructed . | . . . . . . . . . . . . . . . Prevented . | . . . . . . . . . . . . . . . Parts Restored . | . . . . . . . . . . . . . . . Kills | -11 -10 -10 -10 -9 -8 -7 -6 -5 -5 -5 -5 -5 -4 -3 ------- Run | Yrd Mat Min Exi Min Mat Fac Fac Fac Ext Cet Arc Hub Fac Res Combat Hostiles Destroyed 74 | . . 1 . 3 20 3 15 7 9 1 . . 10 5 Melee 41 | . . . . . 3 3 11 7 9 1 . . 2 5 Guns 21 | . . 1 . 3 17 . . . . . . . . . Cannons 8 | . . . . . . . . . . . . . 8 . AOE 4 | . . . . . . . 4 . . . . . . . Classes Destroyed 13 | . . 2 . 1 7 1 1 . 1 . . . . . Worker 2 | . . . . . . . 1 . . . . 1 . . Builder 3 | . . 1 . . 2 . . . . . . . . . Hauler 3 | . . . . . 1 1 . . . . . 1 . . Recycler 3 | . . . . . 1 . 1 . . . . . . 1 Operator 8 | . . . . . 2 1 . . 1 . 4 . . . Watcher 8 | . . . . . 3 . 1 2 1 . . . . 1 Swarmer 11 | . . . . 3 4 . 1 . . . . . . 3 Grunt 26 | . . . . . 10 1 6 3 3 . . . 3 . Sentry 10 | . . . . . 3 1 1 . 5 . . . . . Demolisher 1 | . . 1 . . . . . . . . . . . . Hunter 5 | . . . . . 3 . 1 . . . . . 1 . Programmer 19 | . . . . . . 1 6 4 . . . . 6 2 Behemoth 1 | . . . . . . . . . 1 . . . . . Cetus Guard 1 | . . . . . . . . . . 1 . . . . Best Kill Streak 6 | . . 2 . 3 3 2 6 2 2 1 3 1 2 4 Combat Bots Only 5 | . . 1 . 3 3 1 5 2 2 1 . . 2 3 Max Kills in Single Turn 2 | . . 1 . 2 1 1 2 1 1 1 1 1 1 1 Gunslinging 1 | . . . . 1 . . . . . . . . . . Exploded 2 | . . . . . . . 2 . . . . . . . Melee 1 | . . . . . 1 1 1 1 1 1 . . 1 1 Uniques/NPCs Destroyed . | . . . . . . . . . . . . . . . Combat | -11 -10 -10 -10 -9 -8 -7 -6 -5 -5 -5 -5 -5 -4 -3 -------- Run | Yrd Mat Min Exi Min Mat Fac Fac Fac Ext Cet Arc Hub Fac Res Hostile Shots Fired 868 | . . 13 . 4 99 66 99 59 46 11 2 6 266 197 Missed 280 | . . 2 . . 26 27 31 14 14 1 1 1 86 77 Hits 588 | . . 11 . 4 73 39 68 45 32 10 1 5 180 120 Melee 1 | . . . . . . . . . . . . . . 1 Projectile 587 | . . 11 . 4 73 39 68 45 32 10 1 5 180 119 AOE 16 | . . 11 . . . . . . . . . . 5 . Critical Strikes 29 | . . . . . 2 2 1 2 2 3 . . 8 9 Actively Blocked 9 | . . . . . . . . . . . . . . 9 Damage Taken 11563 | . . 426 . 30 1055 367 1114 952 698 303 30 146 3529 2913 Core 3554 | . . 187 . 12 127 61 292 240 231 76 30 20 964 1314 Absorbed by Shields 139 | . . . . . . . . . 125 14 . . . . Regen/Repaired (Parts) 373 | . . . . . 216 . . 34 . . . . 123 . Core Remaining (%) 58 | 100 . . . 20 76 91 65 . . . . 40 16 . Volleys Fired 151 | . 1 4 . 4 74 . 9 3 . . . . 55 1 Largest 2 | . 2 2 . 2 2 . 2 1 . . . . 2 1 Hottest 130 | . 130 130 . 130 130 . 72 46 . . . . 102 . Shots Fired 237 | . 2 8 . 8 142 . 11 3 . . . . 62 1 Gun 160 | . 2 8 . 8 142 . . . . . . . . . Cannon 57 | . . . . . . . . . . . . . 57 . Launcher 14 | . . . . . . . 11 3 . . . . . . Special 6 | . . . . . . . . . . . . . 5 1 Kinetic 154 | . . . . . 97 . . . . . . . 57 . Thermal 64 | . 2 8 . 8 45 . . . . . . . 1 . Explosive 11 | . . . . . . . 11 . . . . . . . Electromagnetic 3 | . . . . . . . . 3 . . . . . . Robot Hit Streak 8 | . 1 5 . 4 8 . 6 . . . . . 7 1 Robot Miss Streak 7 | . 6 5 . 6 7 . 1 . . . . . 3 . Penetration Max 1 | . . . . . 1 . . . . . . . . . Secondary Targets 2 | . . . . 2 . . . . . . . . . . Max Gunslinging Chain 1 | . . . . 1 . . . . . . . . . . Shots Hit Robots 364 | . 2 8 . 5 109 15 41 39 45 9 9 8 49 25 Core Hits 218 | . 2 10 . 8 85 6 35 15 22 4 5 4 14 8 Critical Kills 1 | . . . . . 1 . . . . . . . . . Critical Parts Destroyed . | . . . . . . . . . . . . . . . Critical Strikes 31 | . . . . . 4 2 3 4 7 . . . 5 6 Destroy 1 | . . . . . 1 . . . . . . . . . Blast 4 | . . . . . . . . . . . . . 4 . Impale 26 | . . . . . 3 2 3 4 7 . . . 1 6 Melee Attacks 313 | . . . . . 29 23 52 57 50 9 9 10 18 56 Impact 6 | . . . . . 6 . . . . . . . . . Slashing . | . . . . . . . . . . . . . . . Piercing 307 | . . . . . 23 23 52 57 50 9 9 10 18 56 Sneak Attacks 22 | . . . . . 3 2 2 . 3 . 7 2 . 3 Combat Hostiles . | . . . . . . . . . . . . . . . Follow-up Attacks 35 | . . . . . . 3 4 9 11 1 . . 4 3 Damage Inflicted 12230 | . 14 97 . 54 2136 518 2335 1226 1584 294 525 284 1866 1297 Guns 1794 | . 14 97 . 54 1629 . . . . . . . . . Cannons 1292 | . . . . . . . . . . . . . 1292 . Explosions 1271 | . . . . . . . 1271 . . . . . . . Melee 7831 | . . . . . 507 518 1064 1226 1584 294 525 284 540 1289 Ramming 42 | . . . . . . . . . . . . . 34 8 Kinetic 2437 | . . . . . 1145 . . . . . . . 1292 . Thermal 649 | . 14 97 . 54 484 . . . . . . . . . Explosive 1271 | . . . . . . . 1271 . . . . . . . Electromagnetic . | . . . . . . . . . . . . . . . Impact . | . . . . . . . . . . . . . . . Slashing . | . . . . . . . . . . . . . . . Piercing 7831 | . . . . . 507 518 1064 1226 1584 294 525 284 540 1289 Highest Corruption 30 | . . . . . 2 2 4 3 4 4 4 4 30 14 Average Corruption 4 | . . . . . 2 1 3 2 3 4 4 4 6 5 Corruption Purged 5 | . . . . . . . . . . . . . 5 . Corruption Blocked . | . . . . . . . . . . . . . . . Effects 116 | . . . . . 4 3 22 3 18 11 8 2 32 13 Message Errors 29 | . . . . . 2 . 7 2 3 4 . . 7 4 Matter Fused 27 | . . . . . 1 1 5 1 2 4 2 . 11 . Heat Flow Errors 14 | . . . . . 1 . 5 . 4 1 . . 2 1 Energy Discharges 17 | . . . . . . . 4 . 3 . 4 1 4 1 Parts Rejected 4 | . . . . . . . . . 1 . . . 3 . Data Loss (minor) 11 | . . . . . . . . . 2 1 1 1 1 5 Data Loss (major) 8 | . . . . . . 1 1 . 3 1 1 . 1 . Misfires 1 | . . . . . . . . . . . . . 1 . Alerts 3 | . . . . . . 1 . . . . . . 1 1 Misdirections 2 | . . . . . . . . . . . . . 1 1 Overload Shots . | . . . . . . . . . . . . . . . Overflow Damage 863 | . . . . . 47 27 104 142 54 . 47 . 83 359 Projectiles 71 | . . . . . . . . . . . . . 71 . Explosions 53 | . . . . . . . 53 . . . . . . . Melee 739 | . . . . . 47 27 51 142 54 . 47 . 12 359 Knockbacks 9 | . . . . . . . . . . . . . 9 . Impact . | . . . . . . . . . . . . . . . Kinetic 9 | . . . . . . . . . . . . . 9 . Secondary . | . . . . . . . . . . . . . . . Self-Inflicted Damage 131 | . . . . . . . 127 . . . . . . 4 Shots 4 | . . . . . . . 4 . . . . . . . Rammed 4 | . . . . . . . . . . . . . . 4 Targets Rammed 7 | . . . . . . . . . . . . . 3 4 Kicked 3 | . . . . . . . . . . . . . 3 . Crushed . | . . . . . . . . . . . . . . . Highest Temperature 308 | . 60 229 . 180 274 . 264 . 308 201 . . 180 297 Average Temperature 79 | . 36 119 . 90 63 . 90 . 116 97 . . 52 119 Received Heat Transfer 1855 | . . . . . 405 63 171 117 435 36 . 18 334 276 Effects 1 | . . . . . . . . . . . . . . 1 Interference 1 | . . . . . . . . . . . . . . 1 Siege Activations . | . . . . . . . . . . . . . . . Martial Activations . | . . . . . . . . . . . . . . . Shielding Activations . | . . . . . . . . . . . . . . . Robots Disrupted . | . . . . . . . . . . . . . . . Combat Hostiles . | . . . . . . . . . . . . . . . Robots Corrupted . | . . . . . . . . . . . . . . . Combat Hostiles . | . . . . . . . . . . . . . . . Parts Fried . | . . . . . . . . . . . . . . . Impact Corruptions . | . . . . . . . . . . . . . . . Robots Melted . | . . . . . . . . . . . . . . . Combat Hostiles . | . . . . . . . . . . . . . . . Parts Melted 2 | . . . . . 2 . . . . . . . . . Heat Transferred 805 | . 15 120 . 65 605 . . . . . . . . . Parts Sabotaged . | . . . . . . . . . . . . . . . Parts Stolen . | . . . . . . . . . . . . . . . Parts Stripped . | . . . . . . . . . . . . . . . Power Chain Reactions . | . . . . . . . . . . . . . . . Alert | -11 -10 -10 -10 -9 -8 -7 -6 -5 -5 -5 -5 -5 -4 -3 ------- Run | Yrd Mat Min Exi Min Mat Fac Fac Fac Ext Cet Arc Hub Fac Res Maximum Alert Level 1 | . . . . . . . . . 1 . 1 . . 1 Low Security (%) 92 | 100 100 100 . 100 100 100 100 100 71 100 66 100 100 53 Level 1 7 | . . . . . . . . . 28 . 33 . . 46 Level 2 . | . . . . . . . . . . . . . . . Level 3 . | . . . . . . . . . . . . . . . Level 4 . | . . . . . . . . . . . . . . . Level 5 . | . . . . . . . . . . . . . . . High Security . | . . . . . . . . . . . . . . . Max Security . | . . . . . . . . . . . . . . . Peak Influence 327 | . 18 25 . 70 136 46 153 54 327 162 238 176 86 323 Initial 162 | . . 3 . . . 43 2 54 . 162 . 37 55 40 Average 66 | . 2 4 . 16 84 11 73 14 108 54 169 121 19 157 Influence Increases 4636 | . 29 40 . 70 726 136 565 243 667 185 288 290 470 927 Destroy 0b10 Robot/C 1980 | . . 20 . 60 420 60 300 140 360 80 80 100 260 100 Destroy 0b10 Robot/NC 170 | . . 5 . . 65 10 15 10 15 5 25 10 . 10 Destroy Leader 448 | . . . . 10 122 22 102 34 44 . . 32 60 22 Allied During Kill 502 | . . . . . 50 . . . 214 44 105 79 10 . Successful Hack 216 | . 29 . . . 10 12 22 20 18 . . . 44 61 Disable Machine 180 | . . . . . 30 15 15 15 . 30 60 15 . . Destroy Structure 300 | . . . . . 14 2 66 24 16 26 18 24 66 44 Partial Spotted 75 | . . . . . . . . . . . . . . 75 Lose Combat Pursuer 765 | . . 15 . . 15 15 45 . . . . 30 30 615 Influence Decreases 4419 | . 21 33 15 70 630 225 460 355 377 475 180 284 506 788 Entered New Map 432 | . . 5 15 . . 53 5 58 . 128 . 71 59 38 Time Decay 2877 | . 21 28 . 70 510 172 376 277 297 187 180 100 331 328 Search Patrol Dispatched 200 | . . . . . . . . . . . . . . 200 Lost Part 485 | . . . . . 40 . 79 20 40 20 . 10 74 202 Lost Ally 425 | . . . . . 80 . . . 40 140 . 103 42 20 Squads Dispatched 33 | . . . . . 4 1 6 4 1 . . 2 5 10 Investigation 6 | . . . . . 1 . 1 1 . . . . 1 2 Extermination 13 | . . . . . . 1 3 3 . . . . 3 3 Reinforcement 11 | . . . . . 3 . 2 . 1 . . 2 1 2 Assault . | . . . . . . . . . . . . . . . Garrison 3 | . . . . . . . . . . . . . . 3 Intercept . | . . . . . . . . . . . . . . . Searches Triggered 2 | . . . . . . . . . . . . . . 2 Construction Impeded 3 | . . . . . . . 1 . . . . 1 1 . Haulers Reinforced 1 | . . . . . . . 1 . . . . . . . Active Scanning Responses . | . . . . . . . . . . . . . . . Cargo Convoy Interrupts 1 | . . . . . . 1 . . . . . . . . Stealth | -11 -10 -10 -10 -9 -8 -7 -6 -5 -5 -5 -5 -5 -4 -3 --------- Run | Yrd Mat Min Exi Min Mat Fac Fac Fac Ext Cet Arc Hub Fac Res Distress Signals 18 | . . . . . 7 1 1 . . 1 . . 3 5 Communications Jammed . | . . . . . . . . . . . . . . . Distress Signals . | . . . . . . . . . . . . . . . Times Spotted 226 | . 3 4 . 2 38 14 21 12 21 5 9 7 28 62 Peak Tracking Total 18 | . 2 2 . . 4 8 5 3 3 5 2 3 6 18 Tactical Retreats 18 | . . 1 . . 1 1 2 . . . . 1 1 11 Traps | -11 -10 -10 -10 -9 -8 -7 -6 -5 -5 -5 -5 -5 -4 -3 ------- Run | Yrd Mat Min Exi Min Mat Fac Fac Fac Ext Cet Arc Hub Fac Res Traps Triggered 9 | . 1 . . . 1 1 . 1 1 . . . . 4 Indirectly . | . . . . . . . . . . . . . . . Trap Hack Attempts . | . . . . . . . . . . . . . . . Triggered . | . . . . . . . . . . . . . . . Disarmed . | . . . . . . . . . . . . . . . Reprogrammed . | . . . . . . . . . . . . . . . Reused . | . . . . . . . . . . . . . . . Traps Extracted . | . . . . . . . . . . . . . . . Installed . | . . . . . . . . . . . . . . . Triggered . | . . . . . . . . . . . . . . . Machines | -11 -10 -10 -10 -9 -8 -7 -6 -5 -5 -5 -5 -5 -4 -3 ---------- Run | Yrd Mat Min Exi Min Mat Fac Fac Fac Ext Cet Arc Hub Fac Res Machines Disabled 14 | . . . . . 2 1 1 1 . 4 4 1 . . Max in Single Turn 1 | . . . . . 1 1 1 1 . 1 . . . . Garrison Access 4 | . . . . . 1 1 2 . . . . . . . Machines Repaired . | . . . . . . . . . . . . . . . Machines Dismantled 3 | . . . . . . . . . . 3 . . . . Machines Sabotaged . | . . . . . . . . . . . . . . . Overloaded Fab Kills . | . . . . . . . . . . . . . . . Hacking | -11 -10 -10 -10 -9 -8 -7 -6 -5 -5 -5 -5 -5 -4 -3 --------- Run | Yrd Mat Min Exi Min Mat Fac Fac Fac Ext Cet Arc Hub Fac Res Machines Accessed 60 | . 2 . 1 . 7 5 10 9 10 3 . . 6 7 Terminals 37 | . 2 . . . 4 4 5 4 9 3 . . 3 3 Fabricators 3 | . . . . . . . 1 1 . . . . 1 . Repair Stations 10 | . . . . . 2 . 1 3 . . . . 2 2 Recycling Units 1 | . . . . . . . . . 1 . . . . . Scanalyzers 3 | . . . . . . . 1 1 . . . . . 1 Garrison Access 5 | . . . . . 1 1 2 . . . . . . 1 Total Hacks 155 | . 7 . 1 . 20 13 22 25 16 4 . . 30 17 Successful 72 | . 3 . 1 . 11 5 7 11 5 1 . . 24 4 Failed 80 | . 4 . . . 9 7 14 14 11 3 . . 6 12 Catastrophic 21 | . 2 . . . 1 3 5 1 1 . . . 2 6 Database Lockouts 3 | . . . . . . 1 1 . . . . . . 1 Manual 75 | . 11 . 1 . 10 9 7 8 3 1 5 . 15 5 Terminals 93 | . 7 . . . 10 11 11 10 15 4 . . 17 8 Fabricators 11 | . . . . . . . 4 5 . . . . 2 . Repair Stations 33 | . . . . . 9 . 1 8 . . . . 11 4 Recycling Units 1 | . . . . . . . . . 1 . . . . . Scanalyzers 6 | . . . . . . . 2 2 . . . . . 2 Garrison Access 10 | . . . . . 1 2 4 . . . . . . 3 Terminal Hacks 27 | . 2 . 1 . 3 4 1 2 4 1 . . 7 2 Record 2 | . . . . . . . . . . 1 . . 1 . Part Schematic 3 | . . . . . . 1 . . . . . . 1 1 Robot Analysis 9 | . 2 . . . 2 2 1 . . . . . 1 1 Open Door 5 | . . . . . . . . 1 4 . . . . . Level Access Points 2 | . . . . . 1 . . . . . . . 1 . Fabricator Index 1 | . . . . . . . . . . . . . 1 . Unreport Threat 1 | . . . . . . . . . . . . . 1 . Registered Components 3 | . . . . . . 1 . 1 . . . . 1 . Proto ID Catalog 1 | . . . 1 . . . . . . . . . . . Fabricator Hacks 4 | . . . . . . . 2 . . . . . 2 . Load Schematic 2 | . . . . . . . 1 . . . . . 1 . Build 2 | . . . . . . . 1 . . . . . 1 . Repair Station Hacks 22 | . . . . . 7 . . 5 . . . . 9 1 Scan Component 13 | . . . . . 4 . . 3 . . . . 5 1 Repair 9 | . . . . . 3 . . 2 . . . . 4 . Recycling Unit Hacks 1 | . . . . . . . . . 1 . . . . . Retrieve Components 1 | . . . . . . . . . 1 . . . . . Scanalyzer 5 | . . . . . . . 2 2 . . . . . 1 Retrieve Study 5 | . . . . . . . 2 2 . . . . . 1 Garrison Access Hacks 4 | . . . . . 1 1 2 . . . . . . . Seal Access 4 | . . . . . 1 1 2 . . . . . . . Unauthorized Hacks 9 | . 1 . . . . . . 2 . . . . 6 . Terminals 9 | . 1 . . . . . . 2 . . . . 6 . Assimilate 2 | . . . . . . . . . . . . . 2 . Botnet 6 | . 1 . . . . . . 2 . . . . 3 . Operators 1 | . . . . . . . . . . . . . 1 . Fabricators . | . . . . . . . . . . . . . . . Repair Stations . | . . . . . . . . . . . . . . . Recycling Units . | . . . . . . . . . . . . . . . Scanalyzers . | . . . . . . . . . . . . . . . Garrison Access . | . . . . . . . . . . . . . . . Data Cores Recovered . | . . . . . . . . . . . . . . . Used . | . . . . . . . . . . . . . . . Hacking Detections 46 | . 2 . . . 6 3 8 7 5 2 . . 6 7 Full Trace Events 5 | . . . . . . . 1 1 . . . . 1 2 Feedback Events . | . . . . . . . . . . . . . . . Feedback Blocked . | . . . . . . . . . . . . . . . Robot Schematics Acquired . | . . . . . . . . . . . . . . . Robots Built . | . . . . . . . . . . . . . . . Authchips . | . . . . . . . . . . . . . . . Time . | . . . . . . . . . . . . . . . Total Robot Build Rating . | . . . . . . . . . . . . . . . Part Schematics Acquired 3 | . . . . . . 1 . . . . . . 1 1 Parts Built 4 | . . . . . . . 2 . . . . . 2 . Authchips . | . . . . . . . . . . . . . . . Time 170 | . . . . . . . 53 . . . . . 117 . Total Part Build Rating 26 | . . . . . . . 12 . . . . . 14 . Part Studies Acquired 5 | . . . . . . . 2 2 . . . . . 1 Parts Repaired 9 | . . . . . 3 . . 2 . . . . 4 . Time 292 | . . . . . 126 . . 44 . . . . 122 . Parts Recycled . | . . . . . . . . . . . . . . . Recycled Matter . | . . . . . . . . . . . . . . . Retrieved Matter . | . . . . . . . . . . . . . . . Retrieved Components 10 | . . . . . . . . . 10 . . . . . Parts Scanalyzed . | . . . . . . . . . . . . . . . Part Schematics Acquired . | . . . . . . . . . . . . . . . Parts Damaged . | . . . . . . . . . . . . . . . Bothacking | -11 -10 -10 -10 -9 -8 -7 -6 -5 -5 -5 -5 -5 -4 -3 ------------ Run | Yrd Mat Min Exi Min Mat Fac Fac Fac Ext Cet Arc Hub Fac Res Used RIF Installer . | . . . . . . . . . . . . . . . Robots Hacked . | . . . . . . . . . . . . . . . Non-combat . | . . . . . . . . . . . . . . . Combat . | . . . . . . . . . . . . . . . Robot Hacks Applied . | . . . . . . . . . . . . . . . Relay Couplers Released . | . . . . . . . . . . . . . . . Fabnet Peak Effective % . | . . . . . . . . . . . . . . . Robots Rewired 10 | . . . . . . . . . 10 . . . . . Allies Hacked 1 | . . . . . . . . . . . . . 1 . Hacks Repelled . | . . . . . . . . . . . . . . . Allies | -11 -10 -10 -10 -9 -8 -7 -6 -5 -5 -5 -5 -5 -4 -3 -------- Run | Yrd Mat Min Exi Min Mat Fac Fac Fac Ext Cet Arc Hub Fac Res Total Allies 30 | . . . . 5 . . . . 15 5 . . 4 1 Largest Group 12 | . . . . 5 5 . . . 12 12 10 8 1 1 Highest-Rated Group 748 | . . . . 89 89 . . . 498 748 748 581 56 116 Highest-Rated Ally 159 | . . . . 31 31 . . . 159 151 143 96 56 116 Total Orders . | . . . . . . . . . . . . . . . Ally Attacks 321 | . . . . . 51 . . . 95 46 45 68 12 4 Total Damage 7329 | . . . . . 489 . . . 2044 909 979 2045 650 213 Kills 35 | . . . . . 5 . . . 11 4 6 6 3 . Allies Corrupted 1 | . . . . . . . . . . . . . 1 . Allies Melted . | . . . . . . . . . . . . . . . Field Lobotomies 4 | . . . . . . . . . . . . . 3 1 Intel | -11 -10 -10 -10 -9 -8 -7 -6 -5 -5 -5 -5 -5 -4 -3 ------- Run | Yrd Mat Min Exi Min Mat Fac Fac Fac Ext Cet Arc Hub Fac Res Active Infowar (turns) 6068 | . . . . . 205 365 1564 1112 715 457 145 204 1134 167 Sensors 5086 | . . . . . 205 365 611 1105 715 457 145 204 1113 166 Terrain 3947 | . . . . . . . 405 1109 433 379 144 204 1106 167 Traps 1773 | . . . . . . . 1079 170 . . . . 524 . Cloaking 563 | . . . . . . . . . . . . . 563 . Jamming 113 | . . . . . . . . . . . . . 111 2 Robot Analysis Total 9 | . 2 . . . 2 2 1 . . . . . 1 1 Derelict Logs Recovered 3 | . . 2 . 1 . . . . . . . . . . Drone Launches . | . . . . . . . . . . . . . . . Drone Recoveries . | . . . . . . . . . . . . . . . Exploration | -11 -10 -10 -10 -9 -8 -7 -6 -5 -5 -5 -5 -5 -4 -3 ------------- Run | Yrd Mat Min Exi Min Mat Fac Fac Fac Ext Cet Arc Hub Fac Res Turns Passed 10023 | 9 148 156 135 324 1743 687 1569 1112 853 522 369 204 1362 830 Spaces Moved 7334 | 18 189 224 238 524 934 479 999 825 613 281 275 133 717 885 Core 208 | 18 68 . . . . . 7 . . . . . 8 107 Treads 182 | . 23 . . . 159 . . . . . . . . . Legs 5177 | . . . . . 754 479 992 825 613 281 275 133 709 116 Wheels . | . . . . . . . . . . . . . . . Hover 1210 | . 98 224 238 524 21 . . . . . . . . 105 Flight 557 | . . . . . . . . . . . . . . 557 Fastest Speed 24 | 50 50 56 56 56 56 120 105 90 90 105 105 105 115 24 Average Speed 97 | 50 66 58 56 56 125 120 122 101 99 105 105 113 118 54 Slowest Speed 500 | 50 160 120 56 56 160 120 450 110 155 105 105 115 500 200 Overloaded Moves 104 | . . . . . . . . . . . . . . 104 Propulsion Burnouts . | . . . . . . . . . . . . . . . Robots Hopped 2 | . . . . . . . . . . . . . . 2 Potential Cave-ins 3 | . . . . . . . . . . . . . . 3 Cave-ins Triggered . | . . . . . . . . . . . . . . . Exploration Rate (%) 44 | 3 35 41 59 85 62 10 26 24 78 87 95 14 18 34 Regions Visited 14 Branch Regions 7 Pre-discovered Areas 3 | . . 3 . . . . . . . . . . . . Known Exits Taken 10 | . . . . 1 1 1 1 1 1 1 1 1 1 . Unknown Exits Taken 4 | 1 1 1 1 . . . . . . . . . . . Scrap Searched 2 | . . . . 2 . . . . . . . . . . Spaces Dug 72 | . . . . . 11 2 10 13 1 . . 2 11 22 Terrain Destroyed 154 | . . . . . 12 2 69 13 1 . . 2 33 22 Melee 61 | . . . . . 11 2 10 13 1 . . 2 . 22 Projectile 34 | . . . . . 1 . . . . . . . 33 . AOE 59 | . . . . . . . 59 . . . . . . . Terrain Rammed . | . . . . . . . . . . . . . . . Walls Destroyed . | . . . . . . . . . . . . . . . Machines Disabled . | . . . . . . . . . . . . . . . Actions | -11 -10 -10 -10 -9 -8 -7 -6 -5 -5 -5 -5 -5 -4 -3 --------- Run | Yrd Mat Min Exi Min Mat Fac Fac Fac Ext Cet Arc Hub Fac Res Total 9434 | 17 206 239 239 546 1343 560 1279 1020 793 448 344 172 1118 1110 Wait 1189 | . . 10 . 18 229 44 182 117 68 103 50 22 278 68 Move 7317 | 17 188 223 237 523 933 478 998 824 612 280 274 132 717 881 Hop 2 | . . . . . . . . . . . . . . 2 Pick Up 75 | . 5 . 2 1 19 7 12 8 5 . 2 2 7 5 Fast Attach 103 | . 8 1 . . 18 2 6 7 6 . 1 2 25 27 Attach 43 | . . 1 . . 6 4 9 5 1 2 . . 6 9 Detach 11 | . . . . . 1 1 2 . 1 . . . . 6 Swap 50 | . 1 . . . 9 1 7 3 12 4 5 . 8 . Drop 81 | . 3 . . . 25 4 8 7 7 1 3 4 7 12 Fire 151 | . 1 4 . 4 74 . 9 3 . . . . 55 1 Melee 269 | . . . . . 29 19 46 46 38 8 9 10 12 52 Ram 4 | . . . . . . . . . . . . . . 4 Kick 2 | . . . . . . . . . . . . . 2 . Crush . | . . . . . . . . . . . . . . . Escape Stasis 48 | . . . . . . . . . 5 . . . . 43 Rewire 38 | . . . . . . . . . 38 . . . . . Trap . | . . . . . . . . . . . . . . . Miscellaneous 51 | . . . . . . . . . . 50 . . 1 . Route ------- -11/Scrapyard -10/Materials -10/Mines -10/Exiles -9/Mines (discovered 2 exits: *Mat x2) -8/Materials (discovered 3 exits: *Fac x3) -7/Factory (discovered 2 exits: *Fac / *Low) -6/Factory -5/Factory -5/Extension (discovered 2 exits: *Fac / *Cet) -5/Cetus (discovered 2 exits: *Fac / *Arc) -5/Archives (discovered 3 exits: *Fac / *Hub x2) -5/Hub_04(d) -4/Factory (discovered 5 exits: *Res x4 / *Upp) -3/Research History --------- Turn | Location | Event 5 | -11/Scrapyard | Discovered new exit (range 12) 10 | -11/Scrapyard | Entered Materials 135 | -10/Materials | Discovered new exit (range 12) 158 | -10/Materials | Entered Mines 187 | -10/Mines | Assembled infested the area 188 | -10/Mines | Learned location of Zion (-6) 200 | -10/Mines | Learned location of Storage (-9) 250 | -10/Mines | Core integrity fell below 50% 312 | -10/Mines | Deemed a non-threat by the Exiles lab entrance 312 | -10/Mines | Discovered new exit (range 5) 314 | -10/Mines | Build established: Mutant 314 | -10/Mines | Entered Exiles 328 | -10/Exiles | Met 8R-AWN 338 | -10/Exiles | Met EX-HEX 354 | -10/Exiles | Met EX-BIN 376 | -10/Exiles | Aligned with FarCom system 376 | -10/Exiles | Given EX-Vault access code 389 | -10/Exiles | Opened EX-Vault 392 | -10/Exiles | Found Field Lobotomy Kit 394 | -10/Exiles | Found Superbattery 407 | -10/Exiles | Warned to stay clear of 0b10 Research branches 422 | -10/Exiles | Met EX-DEC 441 | -10/Exiles | Discovered new exit (range 14) 449 | -10/Exiles | Stole two prototypes: Superbattery, Field Lobotomy Kit 449 | -10/Exiles | Entered Mines 469 | -9/Mines | Discovered new exit (range 5) 598 | -9/Mines | Identified exit to Materials 660 | -9/Mines | Assisted by bots powering up and referring to "LRC-V3" 684 | -9/Mines | Found a hidden stash of uninstalled traps 773 | -9/Mines | Entered Materials 773 | -8/Materials | Accompanied by 5 allies 773 | -8/Materials | Evolved 4 slots: Propulsion x1, Utility x3 780 | -8/Materials | Led the pair of lost Derelicts to an unsafe place 1594 | -8/Materials | Build established: Hacker-Mutant 2057 | -8/Materials | Identified exit to Factory 2276 | -8/Materials | Lost 3 parts (1p2n) 2364 | -8/Materials | Repaired Spear 2406 | -8/Materials | Repaired Carbon-fiber Leg 2451 | -8/Materials | Repaired Gauss Rifle 2516 | -8/Materials | Entered Factory 2516 | -7/Factory | Evolved 2 slots: Utility x2 2518 | -7/Factory | FarCom data flow suspended 2682 | -7/Factory | Build established: Hacker-Gladiator 2708 | -7/Factory | Central database locked down 2845 | -7/Factory | Discovered new exit (range 3) 2846 | -7/Factory | Identified exit to Lower Caves 3057 | -7/Factory | Discovered new exit (range 15) 3141 | -7/Factory | Identified exit to Factory 3186 | -7/Factory | Cargo convoy interrupted 3203 | -7/Factory | Entered another Factory area 3203 | -6/Factory | Evolved 2 slots: Utility x2 3878 | -6/Factory | Lost 5 parts (1n2u2w) 4136 | -6/Factory | Build established: Gladiator 4411 | -6/Factory | Discovered new exit (range 15) 4431 | -6/Factory | Central database locked down 4524 | -6/Factory | Fabricated Thunder Leg (x2) 4771 | -6/Factory | Identified exit to Factory 4772 | -6/Factory | Entered another Factory area 4772 | -5/Factory | Evolved 2 slots: Power x1, Utility x1 4988 | -5/Factory | Repaired Spear+ 5097 | -5/Factory | Repaired Spear+ 5388 | -5/Factory | Build established: Hacker-Gladiator 5792 | -5/Factory | Discovered new exit (range 19) 5813 | -5/Factory | Identified exit to Extension 5884 | -5/Factory | Entered Extension 5935 | -5/Extension | Build established: Scientist-Gladiator 6073 | -5/Extension | Rescued a captive Derelict 6073 | -5/Extension | Rescued a captive Derelict 6206 | -5/Extension | Rescued A7 6224 | -5/Extension | Spotted B-75 Beast 6241 | -5/Extension | Allies destroyed B-75 Beast 6251 | -5/Extension | Spotted B-75 Beast 6270 | -5/Extension | Destroyed B-75 Beast 6427 | -5/Extension | Rescued a captive Derelict 6482 | -5/Extension | Rescued a captive Derelict 6569 | -5/Extension | Build established: Hacker-Gladiator 6692 | -5/Extension | Discovered new exit (range 10) 6693 | -5/Extension | Discovered new exit (range 6) 6708 | -5/Extension | Identified exit to Factory 6713 | -5/Extension | Identified exit to Cetus 6737 | -5/Extension | Entered Cetus 6737 | -5/Cetus | Accompanied by 12 allies (A7) 6742 | -5/Cetus | Acquired a Cetus Manufacturing Module code from A7 6774 | -5/Cetus | Spotted Cetus Guard 6775 | -5/Cetus | Spotted Cetus Guard 6779 | -5/Cetus | Spotted Cetus Guard 6781 | -5/Cetus | Spotted Cetus Guard 6803 | -5/Cetus | Core integrity fell below 50% 6803 | -5/Cetus | Allies destroyed Cetus Guard 6806 | -5/Cetus | Allies destroyed Cetus Guard 6808 | -5/Cetus | Destroyed Cetus Guard 6808 | -5/Cetus | Allies destroyed Cetus Guard 6839 | -5/Cetus | Lost 7 allies 6846 | -5/Cetus | Discovered exit to Factory (range 16) 6959 | -5/Cetus | Escorted A7 to Cetus Mainframe 7051 | -5/Cetus | Started Cetus Manufacturing Module 7076 | -5/Cetus | Manufactured an Enhanced Grunt 7091 | -5/Cetus | Found a strange terminal 7101 | -5/Cetus | Manufactured an Enhanced Grunt 7113 | -5/Cetus | Build established: Hacker-Assassin 7126 | -5/Cetus | Manufactured an Enhanced Grunt 7151 | -5/Cetus | Manufactured an Enhanced Grunt 7176 | -5/Cetus | Manufactured an Enhanced Grunt 7213 | -5/Cetus | Discovered new exit (range 16) 7228 | -5/Cetus | Identified exit to Archives 7259 | -5/Cetus | Entered Archives 7259 | -5/Archives | Accompanied by 10 allies (A7) 7264 | -5/Archives | Received a hacking code to weaken MAIN.C 7316 | -5/Archives | Discovered exit to Factory (range 15) 7355 | -5/Archives | Discovered new exit (range 16) 7375 | -5/Archives | Discovered new exit (range 15) 7391 | -5/Archives | Identified exit to Hub_04(d) 7533 | -5/Archives | Unable to access archive contents 7628 | -5/Archives | Entered Hub_04(d) 7628 | -5/Hub_04(d) | Accompanied by 8 allies 7636 | -5/Hub_04(d) | Spotted B-75 Beast 7638 | -5/Hub_04(d) | Discovered exit to Factory (range 4) 7655 | -5/Hub_04(d) | Allies destroyed B-75 Beast 7686 | -5/Hub_04(d) | Lost 5 allies 7832 | -5/Hub_04(d) | Entered Factory 7832 | -4/Factory | Evolved 2 slots: Utility x2 7855 | -4/Factory | Lost 3 allies 7895 | -4/Factory | Discovered new exit (range 20) 8224 | -4/Factory | Repaired Adv. Terrain Scanner 8253 | -4/Factory | Repaired Imp. Plasma Cutter 8337 | -4/Factory | Repaired Imp. Trap Scanner 8382 | -4/Factory | Repaired Enh. Flexi-carbon Leg 8420 | -4/Factory | Discovered new exit (range 18) 8466 | -4/Factory | Identified exit to Upper Caves 8474 | -4/Factory | Lost 4 parts (1p2u1w) 8504 | -4/Factory | Identified exit to Research 8952 | -4/Factory | Fabricated Force Lance (x2) 9004 | -4/Factory | Core integrity fell below 50% 9033 | -4/Factory | System corruption reached 10% 9036 | -4/Factory | Assimilated H-77 Assassin with FLK Orb 9059 | -4/Factory | Core integrity fell below 20% 9060 | -4/Factory | Assimilated P-70 Sage with FLK Orb 9063 | -4/Factory | Assimilated H-77 Assassin with FLK Orb 9065 | -4/Factory | Lost 15 parts (2p4n7u2w) 9097 | -4/Factory | System corruption reached 30% 9194 | -4/Factory | Entered Research 9194 | -3/Research | Evolved 2 slots: Propulsion x1, Weapon x1 9326 | -3/Research | Central database locked down 9405 | -3/Research | Lost 6 parts (1p2n3u) 9433 | -3/Research | Spotted B-86 Titan 9439 | -3/Research | Assimilated B-86 Titan with FLK Orb 9446 | -3/Research | Garrison activated, responded to threat 9518 | -3/Research | Spotted B-86 Titan 9527 | -3/Research | Core integrity fell below 50% 9543 | -3/Research | Lost 9 parts (4n4u1w) 9564 | -3/Research | Spotted B-86 Titan 9694 | -3/Research | Search patrols dispatched 9797 | -3/Research | Lost 3 parts (2n1w) 9912 | -3/Research | Core integrity fell below 20% 9944 | -3/Research | Search patrols dispatched 9950 | -3/Research | System corruption reached 10% 9955 | -3/Research | Lost 3 parts (1p2n) 10024 | -3/Research | Destroyed by Y-72 Warden with Railgun Last Messages --------------- 09946_ Adv. Terrain Scan Processor temporarily disabled. 09946_ Imp. Target Analyzer temporarily disabled. 09949_ Slammed into T-07 Excavator. 09949_ Destabilizing: System corrupted (+2). 09958_ Acquired Prototype Flight Unit. 09958_ Identified Diametric Drive. 09958_ Faulty integration triggers heat surge (+343). 09959_ Overheating: System interference. 09959_ Adv. Signal Interpreter temporarily disabled. 09959_ Dropped Faulty Diametric Drive. 09975_ System corrupted: Heat flow error (+107). 09978_ U-05 Engineer builds a Wall. 09986_ Dropped Med. Armored Exoskeleton. 09986_ Acquired Field Propulsion Array. 09997_ Connecting with Terminal... 10000_ LEKT=FL5HCR 43=U1UWUUZ7G FY Map ----- +----------------------------------------------------+ | # ^ #### #???? | | # #??# """" T #???? | | # #### """" #???? | | # # """" #???? | | # # """" #???? | | ! # ! + """" #???? | | ####### # """" #???? | | ?????## ########### #####+#### """" #???? | | ??????# #?????????# #?# ## """" #???? | | ??????# #?????????# #?# = ## #???? | | ??????# #?????????# #?# ## [ #???? | | ??????# #?????????# #?# ""#############???? | | ??????# ###########+### ###???????????????? | | ??????# # # #?????????????????? | | ??????# # # ! #?????????????????? | | ??????# # / #?????????????????? | | ??????# # # ! #?????????????????? | | ??????# %+ ! # #?????????????????? | | ??????# # # #?????????????????? | | ??????# #########"##### !#?????????????????? | | ??????# # =! ########?????????????????? | | ????# # u =! #????????????????????????? | | ??# # """ [ #????????????????????????? | | # # """ #????????????????????????? | | + # """ ############## #?????? | | !!! # # /@ Y #?????? | | !!! # + #;##### ###### #?????? | | !!! ?# # """ """ ###???# #????????????????? | | # ##??#### # """ """ # ????# #????????????????? | | #????????# # """ """ # ??# #????????????????? | | ?????????# # # # #######??????????? | | ?????????# # # + + #??????????? | | ?????????# ############## # # #??????????? | | ?????????# #????????????#! ??# #?? #??????????? | | ?????????? #????????????##????# #???? #??????????? | | ?????????? #??????????????????# #????????????????? | | ?????????? #??????????????????# #????????????????? | | ?????????? ???????????????????# #??????######????? | | ?????????? ???????????????????# ####+## #????? | | ?????????? ???????????????????# #????? | | ?????????? ???????????????????+ +????? | | ??????????????????????????????## #????? | | ???????????????????????????????# #????? | | ???????????????????????????????# ###????? | | ??????????????????####+######### #? # | | ??????????????????? # # | | ????????????????????# ^ + # | | ????????????????????# # # | | ?????????????????#### #???? # | | ???????????????? #??????? | +----------------------------------------------------+ Best States ------------- Heat Dissipation 46 Energy Generation 33 Energy Capacity 1600 Matter Stores 300 Matter Capacity 300 Sight Range 16 Robot Scan Range 18 Terrain Scan Range 20 Terrain Scan Density 210 Jamming Range 14 Cloak Strength 2 Melee Speed Boost 20 Phase Shifting 10 Evasion (%) 77 Targeting Accuracy 8 Melee Accuracy 14 Target Analysis 11 Core Analysis 6 Recoil Reduction 3 Particle Charging 15 Offensive Hacking 34 Defensive Hacking 24 Item Schematics ----------------- Thunder Leg | -7/Factory | Hacked Force Lance | -4/Factory | Hacked Enh. Force Lance | -3/Research | Hacked Robot Schematics ------------------ None Fabricated ------------ Thunder Leg | x2 | -6/Factory Force Lance | x2 | -4/Factory Repaired ---------- Spear | 17% | -8/Materials Carbon-fiber Leg | 7% | -8/Materials Gauss Rifle | 42% | -8/Materials Spear | 55% | -5/Factory Spear | 60% | -5/Factory Adv. Terrain Scanner | 20% | -4/Factory Imp. Plasma Cutter | 13% | -4/Factory Imp. Trap Scanner | 22% | -4/Factory Enh. Flexi-carbon Leg | 73% | -4/Factory Studied --------- Spear | -6/Factory | Hacked Flexi-carbon Leg | -6/Factory | Hacked Thunder Leg | -5/Factory | Hacked VSS Leg | -5/Factory | Hacked Force Lance | -3/Research | Hacked Alien Tech Used ----------------- None Achievements -------------- Can't Catch Me Quantum Hacking Challenges ------------ None Game ------ Seed ScimitarActuatorMesh Manual? 0 Play Time 01:47:58 Cumulative 151.3 hours Start 2026.09.21 @ 04:46:07 End 2026.09.21 @ 08:22:44 Sessions 7 Manual Loads 0 Difficulty Rogue Special Mode None Game No. 165 Rogue 165 Adventurer 0 Explorer 0 Win Type - Total 0 Types 0/0/0/0/0/0/0/0/0/0 Lore% 57 Gallery% 60 Achievement% 46 Wizard Run 0 Options --------- Layout 1 ASCII 0 Keyboard 0 Movement Mouse Keybinds 0 Fullscreen 2 Font 24/Smallcaps Map View 50x35 Zoom Use 0% Tactical HUD 1 Map Filters NONE Filters NONE Steam 1 RUN: 2d8b11e3-26b2-4570-812e-e392292bfc8b